fUSD/lending_fUSD_20260629
["ID","MTS","AMOUNT","RATE_DAILY","PERIOD"]
[426685734,1782743451000,-495.28773916,0.00033671,2]
[426685742,1782743451000,-300.0,0.00033671,2]
[426685743,1782743451000,-300.0,0.00033671,2]
[426685744,1782743451000,-300.0,0.00033671,2]
[426685746,1782743451000,-300.0,0.00033671,2]
[426685745,1782743451000,-536.77715252,0.00033671,2]
[426685747,1782743451000,-300.0,0.00033671,2]
[426685748,1782743451000,-730.12015411,0.00033671,2]
[426685750,1782743451000,-300.0,0.00033671,2]
[426685741,1782743451000,-300.0,0.00033671,2]
[426685755,1782743451000,-300.0,0.00033671,2]
[426685793,1782743452000,-300.0,0.00033671,2]
[426685794,1782743452000,-300.0,0.00033671,2]
[426685795,1782743452000,-300.0,0.00033671,2]
[426685792,1782743452000,-446.09705538,0.00033671,2]
[426685797,1782743452000,-300.0,0.00033671,2]
[426685800,1782743452000,-300.0,0.00033671,2]
[426685802,1782743452000,-300.0,0.00033671,2]
[426685796,1782743452000,-300.0,0.00033671,2]
[426685798,1782743452000,-1101.0618519,0.00033671,2]
[426685801,1782743452000,-300.0,0.00033671,2]
[426685803,1782743452000,-300.0,0.00033671,2]
[426685789,1782743452000,-300.0,0.00033671,2]
[426685805,1782743452000,-300.0,0.00033671,2]
[426685799,1782743452000,-300.0,0.00033671,2]
[426685786,1782743452000,-300.0,0.00033671,2]
[426685779,1782743452000,-300.0,0.00033671,2]
[426685790,1782743452000,-300.0,0.00033671,2]
[426685807,1782743452000,-300.0,0.00033671,2]
[426685777,1782743452000,-300.0,0.00033671,2]
[426685774,1782743452000,-569.01654071,0.00033671,2]
[426685776,1782743452000,-300.0,0.00033671,2]
[426685775,1782743452000,-300.0,0.00033671,2]
[426685778,1782743452000,-300.0,0.00033671,2]
[426685787,1782743452000,-300.0,0.00033671,2]
[426685781,1782743452000,-513.95923093,0.00033671,2]
[426685780,1782743452000,-300.0,0.00033671,2]
[426685784,1782743452000,-300.0,0.00033671,2]
[426685783,1782743452000,-584.66801755,0.00033671,2]
[426685791,1782743452000,-300.0,0.00033671,2]
[426685788,1782743452000,-300.0,0.00033671,2]
[426685785,1782743452000,-454.26701287,0.00033671,2]
[426685782,1782743452000,-300.0,0.00033671,2]
[426685806,1782743452000,-300.0,0.00033671,2]
[426685812,1782743452000,-300.0,0.00033671,2]
[426685808,1782743452000,-300.0,0.00033671,2]
[426685828,1782743452000,-300.0,0.00033671,2]
[426685831,1782743452000,-300.0,0.00033671,2]
[426685836,1782743452000,-300.0,0.00033671,2]
[426685830,1782743452000,-302.16203863,0.00033671,2]
[426685829,1782743452000,-300.0,0.00033671,2]
[426685833,1782743452000,-300.0,0.00033671,2]
[426685827,1782743452000,-300.0,0.00033671,2]
[426685834,1782743452000,-300.0,0.00033671,2]
[426685837,1782743452000,-300.0,0.00033671,2]
[426685841,1782743452000,-300.0,0.00033671,2]
[426685838,1782743452000,-300.0,0.00033671,2]
[426685839,1782743452000,-345.7536,0.00033671,2]
[426685840,1782743452000,-300.0,0.00033671,2]
[426685804,1782743452000,-300.0,0.00033671,2]
[426685835,1782743452000,-300.0,0.00033671,2]
[426685824,1782743452000,-300.0,0.00033671,2]
[426685832,1782743452000,-300.0,0.00033671,2]
[426685826,1782743452000,-730.12015411,0.00033671,2]
[426685810,1782743452000,-300.0,0.00033671,2]
[426685823,1782743452000,-536.77715252,0.00033671,2]
[426685809,1782743452000,-300.0,0.00033671,2]
[426685813,1782743452000,-300.0,0.00033671,2]
[426685815,1782743452000,-300.0,0.00033671,2]
[426685811,1782743452000,-495.28773916,0.00033671,2]
[426685816,1782743452000,-300.0,0.00033671,2]
[426685814,1782743452000,-300.0,0.00033671,2]
[426685817,1782743452000,-607.84242655,0.00033671,2]
[426685819,1782743452000,-300.0,0.00033671,2]
[426685821,1782743452000,-300.0,0.00033671,2]
[426685822,1782743452000,-300.0,0.00033671,2]
[426685820,1782743452000,-300.0,0.00033671,2]
[426685825,1782743452000,-300.0,0.00033671,2]
[426685818,1782743452000,-300.0,0.00033671,2]
[426685865,1782743453000,-300.0,0.00033671,2]
[426685873,1782743453000,-352.8326883,0.00033674,60]
[426685861,1782743453000,-300.0,0.00033671,2]
[426685862,1782743453000,-584.66801755,0.00033671,2]
[426685866,1782743453000,-300.0,0.00033671,2]
[426685868,1782743453000,-300.0,0.00033671,2]
[426685871,1782743453000,-305.1348987,0.00033674,60]
[426685872,1782743453000,-955.7894779,0.00033674,60]
[426685875,1782743453000,-162.63306447,0.00033694,30]
[426685870,1782743453000,-372.5023923,0.00033674,60]
[426685867,1782743453000,-300.0,0.00033671,2]
[426685874,1782743453000,-162.40577252,0.00033694,30]
[426685879,1782743453000,-153.0,0.00033697,30]
[426685880,1782743453000,-158.0,0.00033697,30]
[426685876,1782743453000,-274.0,0.00033694,30]
[426685863,1782743453000,-300.0,0.00033671,2]
[426685869,1782743453000,-300.0,0.00033671,2]
[426685864,1782743453000,-454.26701287,0.00033671,2]
[426685845,1782743453000,-1807.30940739,0.00033671,2]
[426685858,1782743453000,-300.0,0.00033671,2]
[426685842,1782743453000,-300.0,0.00033671,2]
[426685844,1782743453000,-954.30228826,0.00033671,2]
[426685846,1782743453000,-300.0,0.00033671,2]
[426685877,1782743453000,-243.0,0.00033694,30]
[426685843,1782743453000,-300.0,0.00033671,2]
[426685847,1782743453000,-300.0,0.00033671,2]
[426685848,1782743453000,-576.43989485,0.00033671,2]
[426685851,1782743453000,-311.22255108,0.00033671,2]
[426685852,1782743453000,-300.0,0.00033671,2]
[426685854,1782743453000,-300.0,0.00033671,2]
[426685849,1782743453000,-300.0,0.00033671,2]
[426685850,1782743453000,-300.0,0.00033671,2]
[426685853,1782743453000,-569.01654071,0.00033671,2]
[426685855,1782743453000,-300.0,0.00033671,2]
[426685856,1782743453000,-300.0,0.00033671,2]
[426685859,1782743453000,-300.0,0.00033671,2]
[426685857,1782743453000,-300.0,0.00033671,2]
[426685860,1782743453000,-513.95923093,0.00033671,2]
[426685881,1782743453000,-635.0,0.00033697,30]
[426685878,1782743453000,-786.0,0.00033697,30]
[426685884,1782743453000,-1000.0,0.00033697,2]
[426685909,1782743453000,-785.0,0.00034028,2]
[426685908,1782743453000,-793.99279464,0.00034028,2]
[426685905,1782743453000,-396.34,0.00034,7]
[426685906,1782743453000,-150.0,0.00034002,2]
[426685907,1782743453000,-151.09934801,0.00034026,2]
[426685910,1782743453000,-785.0,0.00034028,2]
[426685913,1782743453000,-150.0,0.00034043,30]
[426685911,1782743453000,-785.0,0.00034028,2]
[426685918,1782743453000,-10064.13357195,0.000342,2]
[426685916,1782743453000,-345.34,0.00034156,120]
[426685914,1782743453000,-150.0,0.00034084,30]
[426685917,1782743453000,-150.0,0.00034191,30]
[426685915,1782743453000,-150.0,0.00034084,30]
[426685920,1782743453000,-150.0,0.00034298,120]
[426685919,1782743453000,-302.0,0.00034246,14]
[426685921,1782743453000,-151.09934801,0.00034319,2]
[426685882,1782743453000,-160.0,0.00033697,30]
[426685904,1782743453000,-800.0,0.00034,7]
[426685903,1782743453000,-800.0,0.00034,7]
[426685912,1782743453000,-150.0,0.00034043,30]
[426685899,1782743453000,-150.0,0.00033955,30]
[426685883,1782743453000,-151.0,0.00033697,30]
[426685901,1782743453000,-2280.56935788,0.00033983,7]
[426685885,1782743453000,-1000.0,0.00033697,2]
[426685886,1782743453000,-1495.56,0.00033697,2]
[426685888,1782743453000,-1330.37,0.00033697,2]
[426685889,1782743453000,-151.09934801,0.00033734,2]
[426685890,1782743453000,-150.0,0.00033762,30]
[426685892,1782743453000,-370.38,0.00033789,3]
[426685891,1782743453000,-150.0,0.00033762,30]
[426685887,1782743453000,-1000.0,0.00033697,2]
[426685893,1782743453000,-1859.14,0.000338,30]
[426685897,1782743453000,-368.51,0.000339,120]
[426685894,1782743453000,-283.0,0.00033828,2]
[426685895,1782743453000,-1278.0,0.00033828,2]
[426685896,1782743453000,-150.0,0.00033869,30]
[426685902,1782743453000,-425.34860366,0.00034,2]
[426685898,1782743453000,-10064.13357195,0.000339,2]
[426685900,1782743453000,-150.0,0.00033977,30]
[426685957,1782743454000,-150.0,0.0003462,120]
[426685953,1782743454000,-800.0,0.000345,7]
[426685954,1782743454000,-800.0,0.000345,7]
[426685951,1782743454000,-151.0,0.00034488,7]
[426685950,1782743454000,-151.0,0.00034488,7]
[426685945,1782743454000,-151.0,0.00034488,7]
[426685948,1782743454000,-152.0,0.00034488,7]
[426685960,1782743454000,-274.0,0.00034694,30]
[426685952,1782743454000,-10064.13357195,0.000345,2]
[426685956,1782743454000,-151.09934801,0.00034611,2]
[426685967,1782743454000,-5725.99032933,0.00034698,2]
[426685959,1782743454000,-150.0,0.00034662,120]
[426685962,1782743454000,-786.0,0.00034697,30]
[426685958,1782743454000,-221.96843594,0.0003464,2]
[426685961,1782743454000,-243.0,0.00034694,30]
[426685963,1782743454000,-153.0,0.00034697,30]
[426685965,1782743454000,-160.59292995,0.00034697,30]
[426685969,1782743454000,-452.81055652,0.00034698,2]
[426685973,1782743454000,-188.24314502,0.00034785,16]
[426685947,1782743454000,-152.0,0.00034488,7]
[426685955,1782743454000,-150.0,0.00034512,120]
[426685943,1782743454000,-151.0,0.00034488,7]
[426685923,1782743454000,-785.0,0.00034398,2]
[426685949,1782743454000,-151.0,0.00034488,7]
[426685971,1782743454000,-150.0,0.00034727,120]
[426685922,1782743454000,-198.03,0.0003439,120]
[426685925,1782743454000,-785.0,0.00034398,2]
[426685926,1782743454000,-785.0,0.00034398,2]
[426685924,1782743454000,-785.0,0.00034398,2]
[426685928,1782743454000,-785.0,0.00034398,2]
[426685927,1782743454000,-785.0,0.00034398,2]
[426685929,1782743454000,-785.0,0.00034398,2]
[426685932,1782743454000,-150.0,0.00034405,120]
[426685934,1782743454000,-502.0,0.00034408,18]
[426685931,1782743454000,-1500.0,0.000344,7]
[426685933,1782743454000,-150.0,0.00034405,120]
[426685936,1782743454000,-5000.0,0.00034456,2]
[426685935,1782743454000,-6896.2026673,0.00034456,2]
[426685938,1782743454000,-5000.0,0.00034456,2]
[426685937,1782743454000,-5000.0,0.00034456,2]
[426685939,1782743454000,-5000.0,0.00034456,2]
[426685941,1782743454000,-150.0,0.00034486,120]
[426685940,1782743454000,-150.0,0.00034486,120]
[426685942,1782743454000,-150.0,0.00034486,120]
[426685944,1782743454000,-151.0,0.00034488,7]
[426685946,1782743454000,-151.0,0.00034488,7]
[426685972,1782743454000,-1950.77,0.00034729,30]
[426685930,1782743454000,-785.0,0.00034398,2]
[426685966,1782743454000,-151.0,0.00034697,30]
[426685997,1782743454000,-1500.0,0.00035,2]
[426686005,1782743454000,-1500.0,0.00035,2]
[426685999,1782743454000,-1500.0,0.00035,2]
[426686001,1782743454000,-216.58458871,0.00035,10]
[426686000,1782743454000,-1500.0,0.00035,2]
[426686004,1782743454000,-2168.0,0.00035,60]
[426686003,1782743454000,-5800.0,0.00035,2]
[426686002,1782743454000,-424.0,0.00035,30]
[426686006,1782743454000,-214.0,0.00035,10]
[426686008,1782743454000,-800.0,0.00035,7]
[426686009,1782743454000,-800.0,0.00035,7]
[426686007,1782743454000,-1500.0,0.00035,2]
[426686018,1782743454000,-200.0,0.000352,11]
[426686014,1782743454000,-192.27096766,0.000351,120]
[426686010,1782743454000,-1500.0,0.00035,2]
[426686012,1782743454000,-150.0,0.00035048,120]
[426686015,1782743454000,-512.21023281,0.000351,120]
[426686013,1782743454000,-150.0,0.00035048,120]
[426686011,1782743454000,-2618.0,0.00035001,10]
[426686016,1782743454000,-150.0,0.00035156,120]
[426686017,1782743454000,-151.09934801,0.00035195,2]
[426685995,1782743454000,-2788.8866,0.00035,2]
[426685998,1782743454000,-1500.0,0.00035,2]
[426685968,1782743454000,-227.09549037,0.00034698,2]
[426685994,1782743454000,-5800.0,0.00034992,2]
[426685964,1782743454000,-635.0,0.00034697,30]
[426685970,1782743454000,-150.0,0.00034727,120]
[426685978,1782743454000,-200.0,0.0003482,7]
[426685982,1782743454000,-2336.0,0.00034852,11]
[426685977,1782743454000,-599.17,0.000348,2]
[426685974,1782743454000,-368.09,0.00034794,3]
[426685996,1782743454000,-1500.0,0.00035,2]
[426685979,1782743454000,-200.0,0.0003482,7]
[426685983,1782743454000,-2000.0,0.00034882,7]
[426685976,1782743454000,-1295.66,0.000348,30]
[426685981,1782743454000,-150.0,0.00034834,120]
[426685980,1782743454000,-200.0,0.0003482,7]
[426685984,1782743454000,-386.0,0.00034884,30]
[426685991,1782743454000,-681.54,0.00034951,30]
[426685986,1782743454000,-200.0,0.000349,12]
[426685993,1782743454000,-5800.0,0.00034983,2]
[426685985,1782743454000,-10064.13357195,0.000349,2]
[426685989,1782743454000,-150.0,0.00034928,120]
[426685988,1782743454000,-150.0,0.00034928,120]
[426685992,1782743454000,-345.34,0.00034977,120]
[426685987,1782743454000,-151.09934801,0.00034903,2]
[426685990,1782743454000,-150.0,0.00034941,120]
[426685975,1782743454000,-1500.0,0.00034795,2]
[426686052,1782743455000,-500.0,0.00035395,2]
[426686051,1782743455000,-500.0,0.00035395,2]
[426686049,1782743455000,-500.0,0.00035395,2]
[426686050,1782743455000,-500.0,0.00035395,2]
[426686040,1782743455000,-151.0,0.00035395,7]
[426686044,1782743455000,-151.0,0.00035395,7]
[426686043,1782743455000,-151.0,0.00035395,30]
[426686047,1782743455000,-151.0,0.00035395,7]
[426686045,1782743455000,-151.301244,0.00035395,7]
[426686053,1782743455000,-500.0,0.00035395,2]
[426686065,1782743455000,-500.0,0.00035395,2]
[426686059,1782743455000,-500.0,0.00035395,2]
[426686054,1782743455000,-500.0,0.00035395,2]
[426686055,1782743455000,-500.0,0.00035395,2]
[426686058,1782743455000,-500.0,0.00035395,2]
[426686057,1782743455000,-500.0,0.00035395,2]
[426686060,1782743455000,-500.0,0.00035395,2]
[426686064,1782743455000,-500.0,0.00035395,2]
[426686062,1782743455000,-500.0,0.00035395,2]
[426686067,1782743455000,-500.0,0.00035395,2]
[426686039,1782743455000,-151.0,0.00035395,7]
[426686056,1782743455000,-500.0,0.00035395,2]
[426686041,1782743455000,-151.0,0.00035395,7]
[426686031,1782743455000,-165.0,0.0003538,120]
[426686046,1782743455000,-151.0,0.00035395,7]
[426686061,1782743455000,-500.0,0.00035395,2]
[426686019,1782743455000,-502.0,0.00035237,18]
[426686021,1782743455000,-150.0,0.00035263,120]
[426686020,1782743455000,-200.0,0.00035245,10]
[426686023,1782743455000,-150.0,0.0003537,120]
[426686022,1782743455000,-13723.48889787,0.0003534,2]
[426686024,1782743455000,-150.0,0.0003537,120]
[426686025,1782743455000,-150.0,0.0003537,120]
[426686026,1782743455000,-150.0,0.0003537,120]
[426686030,1782743455000,-271.59492067,0.0003537,120]
[426686027,1782743455000,-150.0,0.0003537,120]
[426686032,1782743455000,-259.57383912,0.00035384,2]
[426686029,1782743455000,-150.0,0.0003537,120]
[426686035,1782743455000,-151.0,0.00035395,7]
[426686028,1782743455000,-150.0,0.0003537,120]
[426686033,1782743455000,-231.0244073,0.00035385,2]
[426686034,1782743455000,-481661.23557258,0.00035395,2]
[426686036,1782743455000,-151.0,0.00035395,7]
[426686038,1782743455000,-151.0,0.00035395,7]
[426686037,1782743455000,-151.0,0.00035395,7]
[426686048,1782743455000,-151.0,0.00035395,7]
[426686042,1782743455000,-151.0,0.00035395,7]
[426686066,1782743455000,-500.0,0.00035395,2]
[426686063,1782743455000,-500.0,0.00035395,2]
[426686068,1782743455000,-500.0,0.00035395,2]
[426686104,1782743455000,-151.0,0.0003544,7]
[426686105,1782743455000,-161.244745,0.0003544,7]
[426686094,1782743455000,-2280.56935788,0.000354,7]
[426686096,1782743455000,-735.00080148,0.000354,30]
[426686097,1782743455000,-735.00080145,0.000354,30]
[426686100,1782743455000,-300.0,0.00035439,10]
[426686099,1782743455000,-436805.15270651,0.000354,2]
[426686102,1782743455000,-714062.59379,0.0003544,2]
[426686101,1782743455000,-300.0,0.00035439,10]
[426686106,1782743455000,-151.0,0.0003544,7]
[426686095,1782743455000,-2280.56935788,0.000354,7]
[426686107,1782743455000,-161.264828,0.0003544,7]
[426686108,1782743455000,-161.264828,0.0003544,7]
[426686115,1782743455000,-4119.0554933,0.00035455,3]
[426686111,1782743455000,-151.0,0.00035452,14]
[426686110,1782743455000,-331.37629794,0.00035451,10]
[426686114,1782743455000,-69890.74244101,0.00035455,30]
[426686113,1782743455000,-37794.80781514,0.00035455,60]
[426686112,1782743455000,-100000.0,0.00035455,90]
[426686117,1782743455000,-151.09934801,0.00035488,2]
[426686116,1782743455000,-152.5325826,0.00035457,15]
[426686071,1782743455000,-500.0,0.00035395,2]
[426686109,1782743455000,-161.264828,0.0003544,7]
[426686103,1782743455000,-151.0,0.0003544,7]
[426686098,1782743455000,-735.00080145,0.000354,30]
[426686089,1782743455000,-500.0,0.00035395,2]
[426686070,1782743455000,-500.0,0.00035395,2]
[426686091,1782743455000,-500.0,0.00035395,2]
[426686069,1782743455000,-500.0,0.00035395,2]
[426686073,1782743455000,-500.0,0.00035395,2]
[426686072,1782743455000,-500.0,0.00035395,2]
[426686074,1782743455000,-500.0,0.00035395,2]
[426686076,1782743455000,-500.0,0.00035395,2]
[426686075,1782743455000,-500.0,0.00035395,2]
[426686081,1782743455000,-500.0,0.00035395,2]
[426686082,1782743455000,-500.0,0.00035395,2]
[426686077,1782743455000,-500.0,0.00035395,2]
[426686080,1782743455000,-500.0,0.00035395,2]
[426686090,1782743455000,-500.0,0.00035395,2]
[426686079,1782743455000,-500.0,0.00035395,2]
[426686083,1782743455000,-500.0,0.00035395,2]
[426686085,1782743455000,-500.0,0.00035395,2]
[426686087,1782743455000,-500.0,0.00035395,2]
[426686086,1782743455000,-500.0,0.00035395,2]
[426686084,1782743455000,-500.0,0.00035395,2]
[426686093,1782743455000,-1500.0,0.00035399,2]
[426686092,1782743455000,-499.655273,0.00035395,2]
[426686078,1782743455000,-500.0,0.00035395,2]
[426686088,1782743455000,-500.0,0.00035395,2]
[426686156,1782743456000,-151.0,0.00035616,30]
[426686157,1782743456000,-151.0,0.00035616,30]
[426686152,1782743456000,-151.0,0.00035616,30]
[426686151,1782743456000,-151.0,0.00035616,30]
[426686149,1782743456000,-151.0,0.00035616,30]
[426686144,1782743456000,-151.0,0.00035616,30]
[426686150,1782743456000,-151.0,0.00035616,30]
[426686147,1782743456000,-151.0,0.00035616,30]
[426686143,1782743456000,-181.36,0.00035616,2]
[426686154,1782743456000,-151.0,0.00035616,30]
[426686153,1782743456000,-151.0,0.00035616,30]
[426686158,1782743456000,-170.601858,0.00035616,30]
[426686164,1782743456000,-151.0,0.00035616,30]
[426686160,1782743456000,-151.0,0.00035616,30]
[426686159,1782743456000,-191.650377,0.00035616,30]
[426686163,1782743456000,-151.0,0.00035616,30]
[426686161,1782743456000,-151.0,0.00035616,30]
[426686162,1782743456000,-215.895414,0.00035616,30]
[426686169,1782743456000,-151.0,0.00035616,30]
[426686165,1782743456000,-552.655342,0.00035616,30]
[426686168,1782743456000,-552.655342,0.00035616,30]
[426686167,1782743456000,-552.655342,0.00035616,30]
[426686166,1782743456000,-552.655342,0.00035616,30]
[426686139,1782743456000,-607.06,0.00035616,2]
[426686155,1782743456000,-151.0,0.00035616,30]
[426686141,1782743456000,-500.0,0.00035616,7]
[426686123,1782743456000,-334.0,0.00035524,7]
[426686142,1782743456000,-520.16644751,0.00035616,7]
[426686170,1782743456000,-151.0,0.00035616,30]
[426686122,1782743456000,-192.4,0.00035519,2]
[426686119,1782743456000,-800.0,0.000355,7]
[426686120,1782743456000,-591.15,0.00035517,30]
[426686118,1782743456000,-800.0,0.000355,7]
[426686124,1782743456000,-170.0,0.00035524,7]
[426686125,1782743456000,-217.91407471,0.00035532,60]
[426686121,1782743456000,-1737.06,0.00035519,7]
[426686126,1782743456000,-150.0,0.00035532,60]
[426686128,1782743456000,-150.0,0.00035532,60]
[426686129,1782743456000,-150.0,0.00035532,60]
[426686148,1782743456000,-151.0,0.00035616,30]
[426686127,1782743456000,-150.0,0.00035532,60]
[426686131,1782743456000,-372.5023922,0.00035534,120]
[426686134,1782743456000,-152.1687274,0.00035534,120]
[426686136,1782743456000,-955.7894778,0.00035534,120]
[426686133,1782743456000,-305.1348986,0.00035534,120]
[426686135,1782743456000,-209.994157,0.00035534,120]
[426686132,1782743456000,-296.0758621,0.00035534,120]
[426686137,1782743456000,-352.8326883,0.00035534,120]
[426686138,1782743456000,-1859.14,0.000356,30]
[426686140,1782743456000,-182.12,0.00035616,2]
[426686146,1782743456000,-160.892351,0.00035616,30]
[426686145,1782743456000,-151.0,0.00035616,7]
[426686130,1782743456000,-150.0,0.00035532,60]
[426686171,1782743456000,-151.0,0.00035616,30]
[426686215,1782743456000,-151.0,0.0003598,30]
[426686178,1782743456000,-151.0,0.00035616,30]
[426686203,1782743456000,-151.0,0.0003598,7]
[426686209,1782743456000,-151.0,0.0003598,30]
[426686204,1782743456000,-151.0,0.0003598,7]
[426686210,1782743456000,-151.0,0.0003598,30]
[426686205,1782743456000,-688314.85248558,0.0003598,2]
[426686211,1782743456000,-221.152729,0.0003598,30]
[426686212,1782743456000,-151.0,0.0003598,28]
[426686214,1782743456000,-151.0,0.0003598,30]
[426686213,1782743456000,-151.0,0.0003598,30]
[426686207,1782743456000,-166.664109,0.0003598,30]
[426686206,1782743456000,-151.0,0.0003598,30]
[426686202,1782743456000,-151.0,0.0003598,7]
[426686220,1782743456000,-151.0,0.0003598,30]
[426686219,1782743456000,-151.0,0.0003598,30]
[426686223,1782743456000,-151.0,0.0003598,30]
[426686217,1782743456000,-203.587269,0.0003598,30]
[426686225,1782743456000,-151.0,0.0003598,30]
[426686216,1782743456000,-151.0,0.0003598,30]
[426686226,1782743456000,-151.0,0.0003598,30]
[426686221,1782743456000,-151.0,0.0003598,30]
[426686222,1782743456000,-260.30222,0.0003598,30]
[426686224,1782743456000,-151.0,0.0003598,30]
[426686227,1782743456000,-151.0,0.0003598,30]
[426686172,1782743456000,-151.0,0.00035616,30]
[426686218,1782743456000,-151.0,0.0003598,30]
[426686201,1782743456000,-151.0,0.0003598,7]
[426686208,1782743456000,-170.554702,0.0003598,30]
[426686196,1782743456000,-150.0,0.00035863,7]
[426686180,1782743456000,-156.897001,0.00035616,30]
[426686200,1782743456000,-231.0244073,0.0003597,2]
[426686177,1782743456000,-151.0,0.00035616,30]
[426686175,1782743456000,-213.630021,0.00035616,30]
[426686179,1782743456000,-151.0,0.00035616,30]
[426686176,1782743456000,-151.0,0.00035616,30]
[426686174,1782743456000,-151.0,0.00035616,30]
[426686173,1782743456000,-151.0,0.00035616,30]
[426686182,1782743456000,-151.0,0.00035616,30]
[426686183,1782743456000,-151.0,0.00035616,30]
[426686184,1782743456000,-178.516425,0.00035617,120]
[426686181,1782743456000,-151.0,0.00035616,30]
[426686188,1782743456000,-150.0,0.00035702,2]
[426686191,1782743456000,-573.86,0.00035745,2]
[426686198,1782743456000,-266.231,0.00035863,7]
[426686197,1782743456000,-150.0,0.00035863,7]
[426686199,1782743456000,-160.0,0.00035939,11]
[426686195,1782743456000,-150.0,0.00035863,7]
[426686194,1782743456000,-345.34,0.00035799,120]
[426686192,1782743456000,-151.09934801,0.0003578,2]
[426686193,1782743456000,-370.42,0.00035799,3]
[426686185,1782743456000,-2336.0,0.00035661,11]
[426686186,1782743456000,-553.77325527,0.00035672,120]
[426686190,1782743456000,-573.9,0.00035744,2]
[426686187,1782743456000,-453.08720886,0.00035672,120]
[426686189,1782743456000,-391.6,0.00035713,10]
[426686270,1782743457000,-234.950866,0.00036435,107]
[426686266,1782743457000,-211.01,0.00036362,60]
[426686271,1782743457000,-262.59419071,0.00036445,2]
[426686265,1782743457000,-2336.0,0.00036349,11]
[426686274,1782743457000,-14063.8080228,0.00036496,2]
[426686259,1782743457000,-512.21023281,0.000361,120]
[426686263,1782743457000,-160.309336,0.00036289,10]
[426686260,1782743457000,-176.556177,0.00036116,120]
[426686261,1782743457000,-10450.12149638,0.00036186,2]
[426686257,1782743457000,-502.0,0.00036066,19]
[426686268,1782743457000,-205.2299367,0.00036394,8]
[426686264,1782743457000,-2010.0,0.000363,7]
[426686267,1782743457000,-151.09934801,0.00036364,2]
[426686284,1782743457000,-345.34,0.00036621,120]
[426686273,1782743457000,-175.7942128,0.00036492,2]
[426686272,1782743457000,-459.0,0.00036463,30]
[426686276,1782743457000,-2500.0,0.000365,60]
[426686286,1782743457000,-1381.0,0.00036632,11]
[426686275,1782743457000,-156.8549087,0.00036496,2]
[426686279,1782743457000,-800.0,0.000365,7]
[426686277,1782743457000,-200.0,0.000365,13]
[426686278,1782743457000,-800.0,0.000365,7]
[426686280,1782743457000,-482.62,0.00036567,2]
[426686281,1782743457000,-573.86,0.00036567,2]
[426686283,1782743457000,-200.0,0.000366,13]
[426686282,1782743457000,-482.62,0.00036567,2]
[426686256,1782743457000,-1950.77,0.00036062,30]
[426686269,1782743457000,-1295.66,0.000364,30]
[426686258,1782743457000,-151.09934801,0.00036072,2]
[426686237,1782743457000,-151.0,0.0003598,30]
[426686255,1782743457000,-800.0,0.00036,7]
[426686285,1782743457000,-305.101614,0.0003663,60]
[426686228,1782743457000,-151.0,0.0003598,30]
[426686236,1782743457000,-151.0,0.0003598,30]
[426686238,1782743457000,-294.03838,0.0003598,30]